bitfinex-derivatives/quotes_SOLF0:USTF0_20250820
["timestamp","ask_amount","ask_price","bid_price","bid_amount"]
[1755712619682,2.93,184.96,184.92,0.03524248]
[1755712619880,2.93,184.95,184.92,0.03524248]
[1755712620277,2.96844306,184.97,184.92,3.01524248]
[1755712620586,2.96844306,184.97,184.93,2.98]
[1755712621485,2.93,184.96,184.92,0.03524248]
[1755712621682,2.93,184.95,184.92,0.03524248]
[1755712622087,2.93,184.95,184.92,3.01524248]
[1755712623884,2.96844306,184.97,184.92,3.01524248]
[1755712624084,2.93,184.96,184.92,3.01524248]
[1755712624578,0.03844306,184.97,184.92,0.03524248]
[1755712624783,2.93,184.96,184.92,0.03524248]
[1755712624977,2.93,184.96,184.92,3.01524248]
[1755712625786,0.03844306,184.97,184.92,0.03524248]
[1755712625981,2.93,184.96,184.92,0.03524248]
[1755712626186,2.93,184.95,184.92,0.03524248]
[1755712626580,2.93,184.95,184.92,3.01524248]
[1755712626785,0.03844306,184.97,184.92,3.01524248]
[1755712627090,2.93,184.96,184.92,3.01524248]
[1755712628592,2.93,184.95,184.92,3.01524248]
[1755712628988,2.93,184.96,184.92,0.03524248]
[1755712629187,2.93,184.95,184.92,0.03524248]
[1755712629395,2.93,184.96,184.92,0.03524248]
[1755712629694,2.93,184.95,184.92,0.03524248]
[1755712630195,2.93,184.96,184.92,0.03524248]
[1755712632196,1.97140082,184.97,184.92,0.03524248]
[1755712632693,2.93,184.93,184.92,0.03524248]
[1755712633394,2.93,184.93,184.85,7.51540944]
[1755712633893,2.93,184.93,184.86,2.98]
[1755712634282,141.56,184.94,184.86,7.51540944]
[1755712634488,141.56,184.94,184.86,4.53540944]
[1755712634796,0.04145662,184.91,184.88,2.98]
[1755712634995,0.04145662,184.91,184.87,9.94400944]
[1755712635195,0.04145662,184.91,184.9,2.98]
[1755712637203,0.04145662,184.91,184.86,4.53540944]
[1755712637499,0.04145662,184.91,184.81,8.83974739]
[1755712637500,0.04145662,184.91,184.88,2.98]
[1755712637695,0.04145662,184.91,184.89,2.98]
[1755712638995,0.04145662,184.91,184.87,2.98]
[1755712639197,0.04145662,184.91,184.88,2.98]
[1755712639400,0.04145662,184.91,184.89,2.98]
[1755712643194,0.04145662,184.91,184.9,2.98]
[1755712643394,0.04145662,184.91,184.86,9.94440944]
[1755712643602,0.04145662,184.91,184.88,2.98]
[1755712644100,0.04145662,184.91,184.89,2.98]
[1755712647502,0.04145662,184.91,184.9,3.09]
[1755712649802,3.03145662,184.91,184.87,3.09]
[1755712650005,3.03145662,184.91,184.88,3.09]
[1755712650206,0.04145662,184.91,184.86,5.4089]
[1755712650407,0.04145662,184.91,184.89,3.09]
[1755712651109,0.04145662,184.91,184.9,3.09]
[1755712654518,0.04145662,184.91,184.9,8.4979]
[1755712654710,0.04145662,184.91,184.9,3.09]
[1755712655214,0.04145662,184.91,184.88,3.09]
[1755712655619,0.04145662,184.91,184.89,3.09]
[1755712657013,0.04145662,184.91,184.9,3.09]
[1755712660018,0.04145662,184.91,184.9,8.4979]
[1755712661421,0.04145662,184.91,184.9,13.03330944]
[1755712661612,144.07,185.0,184.96,8.496]
[1755712661818,144.07,185.0,184.97,3.09]
[1755712662412,2.99,185.0,184.97,3.09]
[1755712662618,2.99,184.99,184.96,5.4059]
[1755712662814,2.99,184.99,184.95,3.09]
[1755712664512,2.99,184.99,184.95,8.4963]
[1755712664717,2.99,184.99,184.95,3.09]
[1755712664912,2.99,184.99,184.92,4.52687331]
[1755712665116,2.99,185.02,184.93,3.09]
[1755712665325,140.86,185.04,184.97,5.4057]
[1755712665519,2.99,185.01,184.97,3.09]
[1755712665823,2.99,185.01,184.98,3.09]
[1755712666515,140.8,185.03,184.98,5.4055]
[1755712666719,2.99,185.02,184.99,3.09]
[1755712667324,3.02943519,185.02,184.99,3.09]
[1755712667626,3.02943519,185.02,184.98,5.4055]
[1755712667627,2.99,185.01,184.93,3.09]
[1755712668526,2.99,185.01,184.95,5.4062]
[1755712668918,2.99,185.01,184.91,4.52206445]
[1755712669125,1.93295776,184.98,184.89,4.52206445]
[1755712669318,2.99,184.97,184.88,7.61206445]
[1755712669714,2.99,184.97,184.91,0.03693043]
[1755712670021,0.03568799,184.94,184.91,0.03693043]
[1755712670422,2.99,184.93,184.91,0.03693043]
[1755712670821,0.03568799,184.94,184.91,0.03693043]
[1755712671018,2.99,184.92,184.91,0.03693043]
[1755712673722,2.99,184.92,184.84,4.52206445]
[1755712674321,2.99,184.92,184.82,7.61206445]
[1755712674819,2.99,184.92,184.83,5.4098]
[1755712675129,0.04140421,184.89,184.82,7.61206445]
[1755712675332,0.04140421,184.89,184.83,3.09]
[1755712675523,0.04140421,184.89,184.85,8.4993]
[1755712675718,0.04140421,184.89,184.86,2.89]
[1755712676426,0.04140421,184.89,184.78,8.83974739]
[1755712676427,0.04140421,184.89,184.85,2.89]
[1755712676629,0.04140421,184.89,184.88,5.4085]
[1755712676925,0.04140421,184.89,184.88,8.2985]
[1755712678732,0.04140421,184.89,184.88,5.4085]
[1755712679034,2.92140421,184.89,184.87,5.4087]
[1755712679227,2.92140421,184.89,184.83,4.52206445]
[1755712679427,2.92140421,184.89,184.85,2.89]
[1755712679628,2.92140421,184.89,184.86,5.409]
[1755712679827,2.92140421,184.89,184.85,2.89]
[1755712680028,2.92140421,184.89,184.84,2.89]
[1755712680223,0.04140421,184.89,184.86,2.89]
[1755712680434,0.04140421,184.89,184.88,5.4085]
[1755712680627,0.04140421,184.89,184.86,2.89]
[1755712681730,0.04140421,184.89,184.88,5.4085]
[1755712682639,0.04140421,184.89,184.88,8.2985]
[1755712683135,2.88,184.99,184.88,3.43]
[1755712683332,2.88,184.99,184.91,2.89]
[1755712683733,2.88,184.99,184.97,5.4058]
[1755712683933,2.88,184.99,184.91,2.89]
[1755712684334,2.88,184.99,184.96,5.4061]
[1755712684635,2.88,185.02,184.93,2.89]
[1755712685032,2.88,185.02,184.93,4.51093106]
[1755712685334,2.4688185,185.01,184.91,4.51093106]
[1755712685534,5.3488185,185.0,184.9,7.39913812]
[1755712685833,2.88,185.0,184.9,7.39913812]
[1755712687132,2.88,185.0,184.93,5.4068]
[1755712688338,2.88,185.0,184.94,5.4067]
[1755712688538,2.88,185.0,184.9,2.89]
[1755712688738,2.88,185.0,184.93,5.4069]
[1755712689343,2.88,185.0,184.95,5.4063]
[1755712689640,2.88,185.03,184.92,4.50913812]
[1755712689842,2.88,185.03,184.94,2.89]
[1755712690143,0.03605062,184.99,184.96,2.93139778]
[1755712690337,0.03605062,184.99,184.96,0.04139778]
[1755712690540,0.03605062,184.99,184.96,5.44749778]
[1755712690744,2.88,184.98,184.96,0.04139778]
[1755712691341,2.88,184.97,184.96,0.04139778]
[1755712693241,140.2,184.98,184.96,0.04139778]
[1755712694046,143.08,184.98,184.96,0.04139778]
[1755712695738,140.2,184.98,184.96,0.04139778]
[1755712696545,2.88,184.97,184.96,0.04139778]
[1755712697145,140.2,184.98,184.96,0.04139778]
[1755712698643,0.03605062,184.99,184.96,2.93139778]
[1755712698851,0.03605062,184.99,184.97,2.89]
[1755712699042,0.03605062,184.99,184.98,2.89]
[1755712699244,0.03605062,184.99,184.97,2.89]
[1755712699645,0.03605062,184.99,184.98,2.89]
[1755712700148,0.03605062,184.99,184.97,2.89]
[1755712701760,0.03605062,184.99,184.98,2.89]
[1755712702844,0.03605062,184.99,184.96,0.04139778]
[1755712703048,0.03605062,184.99,184.96,2.93139778]
[1755712703353,0.03605062,184.99,184.96,8.33729778]
[1755712703550,0.03605062,184.99,184.97,2.89]
[1755712704748,0.03605062,184.99,184.96,5.44729778]
[1755712704749,0.03605062,184.99,184.96,0.04139778]
[1755712704953,2.88,184.98,184.96,0.04139778]
[1755712705654,0.03605062,184.99,184.96,0.04139778]
[1755712705855,3.04605062,184.99,184.96,0.04139778]
[1755712706249,0.03605062,184.99,184.96,0.04139778]
[1755712706854,3.04605062,184.99,184.96,0.04139778]
[1755712707050,0.03605062,184.99,184.96,2.99139778]
[1755712707853,3.04605062,184.99,184.96,0.04139778]
[1755712712362,0.03605062,184.99,184.96,2.99139778]
[1755712713961,0.03605062,184.99,184.96,0.04139778]
[1755712714263,0.03605062,184.99,184.96,2.99139778]
[1755712714561,0.03605062,184.99,184.97,2.95]
[1755712714854,0.03605062,184.99,184.96,0.04139778]
[1755712715061,0.03605062,184.99,184.98,8.3555]
[1755712715454,0.03605062,184.99,184.96,2.99139778]
[1755712715654,0.03605062,184.99,184.97,2.95]
[1755712715849,0.03605062,184.99,184.98,2.95]
[1755712716665,0.03605062,184.99,184.98,8.3555]
[1755712719857,0.03605062,184.99,184.98,2.95]
[1755712720551,0.03605062,184.99,184.98,8.3555]
[1755712723063,0.03605062,184.99,184.98,2.95]
[1755712723562,0.03605062,184.99,184.97,5.4057]
[1755712725664,0.03605062,184.99,184.97,8.3557]
[1755712725965,0.03605062,184.99,184.98,8.3555]
[1755712726669,0.03605062,184.99,184.98,2.95]
[1755712727666,0.03605062,184.99,184.98,5.4055]
[1755712727862,0.03605062,184.99,184.96,0.04139778]
[1755712728062,0.03605062,184.99,184.97,8.3557]
[1755712728361,0.03605062,184.99,184.97,5.4057]
[1755712728563,0.03605062,184.99,184.97,2.95]
[1755712728760,3.04605062,184.99,184.96,5.44719778]
[1755712729159,3.04605062,184.99,184.96,8.39719778]
[1755712729461,0.03605062,184.99,184.98,2.95]
[1755712729768,0.03605062,184.99,184.98,8.3555]
[1755712734766,0.03605062,184.99,184.98,5.4055]
[1755712734968,0.03605062,184.99,184.98,8.3555]
[1755712740673,0.03605062,184.99,184.98,12.86463812]
[1755712740864,5.062e-05,184.99,184.98,8.8955]
[1755712741063,5.062e-05,184.99,184.98,14.78866493]
[1755712741266,5.062e-05,184.99,184.98,8.8955]
[1755712741461,2.97,185.11,184.99,2.91]
[1755712741667,2.97,185.11,185.01,2.91]
[1755712742159,2.97,185.11,185.05,5.4035]
[1755712742871,2.97,185.11,185.06,0.03662078]
[1755712745769,5.96988134,185.13,185.06,0.03662078]
[1755712745974,8.93988134,185.14,185.06,0.03662078]
[1755712746275,2.97,185.13,185.06,0.03662078]
[1755712759789,138.94,185.12,185.06,2.94662078]
[1755712759992,2.97,185.11,185.06,2.94662078]
[1755712760492,138.94,185.12,185.06,2.94662078]
[1755712760683,2.97,185.09,185.06,2.94662078]
[1755712761195,138.94,185.12,185.06,2.94662078]
[1755712761389,2.97,185.1,185.06,2.94662078]
[1755712762390,138.94,185.12,185.06,2.94662078]
[1755712762595,2.97,185.09,185.06,2.94662078]
[1755712764699,138.94,185.12,185.06,0.03662078]
[1755712765098,2.97,185.09,185.06,2.94662078]
[1755712770702,2.47939527,185.08,185.06,2.94662078]
[1755712772009,3.0,185.07,185.06,0.03662078]
[1755712772199,5.47939527,185.07,185.06,0.03662078]
[1755712772504,3.0,185.06,184.97,2.82]
[1755712772693,141.17939527,185.05,184.97,2.82]
[1755712772892,2.48045897,185.04,184.97,8.2255]
[1755712773097,2.48045897,185.04,184.97,2.82]
[1755712774005,3.0,185.11,184.99,4.50392688]
[1755712774306,3.0,185.11,185.0,2.82]
[1755712774307,141.15995737,185.1,185.0,2.82]
[1755712774502,2.47995737,185.09,185.0,2.82]
[1755712778708,2.47995737,185.09,185.02,4.50392688]
[1755712779005,3.0,185.16,185.05,2.82]
[1755712779209,2.48102616,185.15,185.05,7.32392688]
[1755712779401,2.48102616,185.15,185.06,2.82]
[1755712780995,3.0,185.14,185.04,2.82]
[1755712781200,2.48102616,185.13,185.04,2.82]
[1755712783609,2.48102616,185.13,185.05,7.32392688]
[1755712783800,3.0,185.2,185.08,4.50392688]
[1755712784006,2.47850665,185.19,185.12,2.82]
[1755712784203,366.2,185.24,185.13,2.82]
[1755712784405,0.03797913,185.17,185.13,2.82]
[1755712784612,0.03797913,185.17,185.15,2.82]
[1755712784909,0.03797913,185.17,185.16,2.82]
[1755712787307,366.2,185.24,185.16,2.82]
[1755712788311,363.2,185.24,185.11,4.50392688]
[1755712788511,363.2,185.24,185.12,2.82]
[1755712788512,3.0,185.23,185.12,2.82]
[1755712788714,3.0,185.22,185.18,0.0341826]
[1755712789515,3.0,185.21,185.18,0.0341826]
[1755712791110,363.2,185.24,185.18,0.0341826]
[1755712791315,3.0,185.23,185.18,0.0341826]
[1755712791517,3.0,185.22,185.18,0.0341826]
[1755712791719,3.0,185.2,185.18,0.0341826]
[1755712791913,3.0,185.23,185.18,0.0341826]
[1755712792110,363.2,185.24,185.18,0.0341826]
[1755712792317,3.0,185.23,185.18,0.0341826]
[1755712792514,3.0,185.21,185.18,0.0341826]
[1755712794420,363.2,185.24,185.18,0.0341826]
[1755712794616,3.0,185.2,185.18,0.0341826]
[1755712797717,2.98,185.2,185.18,0.0341826]
[1755712798722,141.18,185.21,185.18,0.0341826]
[1755712798921,2.98,185.2,185.18,0.0341826]
[1755712800420,138.2,185.21,185.18,0.0341826]
[1755712800618,141.18,185.21,185.18,3.0741826]
[1755712800820,2.98,185.32,185.19,3.04]
[1755712801219,362.96,185.34,185.19,3.04]
[1755712801415,138.16,185.33,185.19,3.04]
[1755712801620,2.98,185.32,185.24,0.0380164]
[1755712803426,138.12,185.31,185.24,0.0380164]
[1755712803628,2.98,185.3,185.24,0.0380164]
[1755712804330,138.12,185.31,185.25,3.04]
[1755712804520,2.98,185.3,185.24,0.0380164]
[1755712805326,365.94,185.34,185.26,3.04]
[1755712805525,138.06,185.33,185.26,3.04]
[1755712805731,2.98,185.43,185.26,3.04]
[1755712805925,140.50338459,185.42,185.26,3.04]
[1755712806134,362.88,185.44,185.29,3.04]
[1755712806428,138.06,185.43,185.32,3.04]
[1755712806619,362.88,185.44,185.32,3.04]
[1755712806827,138.04,185.47,185.36,3.04]
[1755712807026,138.04,185.46,185.36,3.04]
[1755712807227,2.98,185.49,185.36,3.04]
[1755712807528,6.15699,185.59,185.4,3.04]
[1755712807529,2.98,185.53,185.4,3.04]
[1755712808122,2.98,185.52,185.3,362.84]
[1755712808329,16.23,185.49,185.27,5.397]
[1755712808522,16.23,185.49,185.19,500.86]
[1755712808523,2.98,185.47,185.28,3.04]
[1755712808722,138.02,185.46,185.28,3.04]
[1755712808922,2.98,185.45,185.28,3.04]
[1755712810634,2.98,185.43,185.28,3.04]
[1755712811632,2.98,185.43,185.19,500.86]
[1755712811633,0.03708456,185.37,185.34,0.03409488]
[1755712811828,2.98,185.35,185.34,0.03409488]
[1755712812023,2.98,185.35,185.25,3.04]
[1755712812625,2.98,185.35,185.11,3.04]
[1755712812929,2.98,185.58,185.45,3.04]
[1755712813429,141.86,185.57,185.45,3.04]
[1755712813627,0.0415164,185.53,185.45,3.04]
[1755712813932,3.0215164,185.53,185.35,3.04]
[1755712814333,2.98,185.53,185.35,3.04]
[1755712814734,0.0414152,185.46,185.35,3.04]
[1755712814928,368.83699,185.59,185.42,3.04]
[1755712815129,2.98,185.58,185.42,3.04]
[1755712815431,2.98,185.57,185.42,3.04]
[1755712815825,142.42,185.56,185.42,3.04]
[1755712816029,2.98,185.55,185.42,3.04]
[1755712816630,142.38,185.54,185.42,3.04]
[1755712816838,2.98,185.53,185.42,3.04]
[1755712819347,2.98,185.53,185.37,3.04]
[1755712820150,142.24,185.52,185.37,3.04]
[1755712820347,2.98,185.53,185.37,3.04]
[1755712820554,142.22,185.52,185.37,3.04]
[1755712821247,2.98,185.51,185.37,3.04]
[1755712821652,2.98,185.51,185.34,362.68]
[1755712821653,142.18,185.52,185.39,3.04]
[1755712821853,2.98,185.55,185.39,3.04]
[1755712822050,368.83699,185.59,185.39,3.04]
[1755712822253,368.83699,185.59,185.47,3.04]
[1755712822957,6.15699,185.59,185.48,3.04]
[1755712824649,6.15699,185.59,185.49,3.04]
[1755712825653,6.15699,185.59,185.5,5.3903]
[1755712826359,6.15699,185.59,185.51,2.94]
[1755712829264,6.15699,185.59,185.51,8.33]
[1755712830760,6.15699,185.59,185.54,2.94]
[1755712831057,6.15699,185.59,185.56,2.94]
[1755712831255,6.15699,185.59,185.57,2.94]
[1755712831461,6.15699,185.59,185.58,2.94]
[1755712831861,6.15699,185.59,185.58,3.48]
[1755712832260,2.87,185.68,185.58,3.48]
[1755712832556,2.87,185.68,185.58,2.94]
[1755712833767,2.87,185.68,185.51,8.17299366]
[1755712834960,2.87,185.68,185.48,62.0]
[1755712835168,2.87,185.68,185.47,362.26]
[1755712835558,2.87,185.68,185.5,5.3902]
[1755712836164,2.87,185.68,185.48,5.391]
[1755712836865,2.87,185.68,185.5,5.3903]
[1755712837066,2.87,185.66,185.5,5.3903]
[1755712837374,2.87,185.66,185.47,362.26]
[1755712837970,2.87,185.66,185.47,367.6511]
[1755712838163,2.87,185.66,185.47,362.26]
[1755712839267,19.1,185.66,185.43,142.06]
[1755712839463,2.87,185.65,185.43,142.06]
[1755712839667,2.87,185.65,185.37,362.14]
[1755712839862,16.23,185.65,185.37,362.14]
[1755712840066,2.87,185.64,185.37,362.14]
[1755712840678,2.87,185.64,185.45,5.3918]
[1755712840874,2.87,185.64,185.37,362.14]
[1755712841278,2.87,185.64,185.45,5.3917]
[1755712841469,16.23,185.67,185.37,362.14]
[1755712841470,2.87,185.62,185.37,362.14]
[1755712842278,2.87,185.62,185.38,62.0]
[1755712842575,2.87,185.62,185.44,5.392]
[1755712842775,2.87,185.62,185.38,62.0]
[1755712842975,362.18,185.61,185.38,62.0]
[1755712843173,2.87,185.6,185.41,5.3929]
[1755712843570,2.87,185.6,185.37,362.14]
[1755712844369,2.4358,185.59,185.37,362.14]
[1755712844575,2.87,185.58,185.31,12.67692054]
[1755712844773,2.87,185.56,185.31,154.35692054]
[1755712845379,2.87,185.56,185.32,4.50392688]
[1755712845568,2.87,185.56,185.31,4.50392688]
[1755712845770,2.87,185.55,185.28,4.50392688]
[1755712845968,5.30680071,185.54,185.27,362.18]
[1755712846172,2.87,185.52,185.28,62.0]
[1755712846374,2.87,185.52,185.32,5.3953]
[1755712847779,2.44054738,185.51,185.3,5.3962]
[1755712847979,2.87,185.5,185.3,5.3962]
[1755712848182,2.87,185.48,185.3,5.3962]
[1755712848382,2.87,185.48,185.27,362.18]
[1755712849375,2.44563493,185.47,185.33,5.3951]
[1755712849582,2.87,185.46,185.27,362.18]
[1755712849981,141.84,185.45,185.34,5.3948]
[1755712850179,2.87,185.44,185.34,5.3948]
[1755712850580,2.87,185.44,185.24,4.50392688]
[1755712850780,2.87,185.42,185.23,118.24873265]
[1755712850982,2.87,185.4,185.23,118.24873265]
[1755712851182,2.87,185.4,185.3,5.3961]
[1755712851484,2.87,185.4,185.23,118.24873265]
[1755712853083,141.82,185.43,185.18,147.69316493]
[1755712853084,16.23,185.39,185.18,4.50392688]
[1755712853287,144.61,185.38,185.15,4.50392688]
[1755712853477,2.87,185.37,185.15,4.50392688]
[1755712853683,2.87,185.37,185.16,0.02]
[1755712854283,8.17253663,185.37,185.19,5.30253663]
[1755712854483,2.87,185.36,185.2,0.02]
[1755712854681,2.87,185.36,185.26,5.3971]
[1755712855387,2.87,185.36,185.2,0.02]
[1755712856782,2.87,185.36,185.25,5.3975]
[1755712857178,2.87,185.36,185.26,5.3973]
[1755712857588,2.87,185.36,185.2,0.02]
[1755712857787,2.87,185.36,185.25,5.3976]
[1755712858092,2.87,185.36,185.2,0.02]
[1755712858280,2.87,185.36,185.24,5.3979]
[1755712858984,2.87,185.36,185.23,5.3982]
[1755712859292,2.87,185.36,185.2,0.02]
[1755712860089,2.87,185.36,185.18,5.30253663]
[1755712860388,2.87,185.36,185.24,5.30253663]
[1755712860584,2.87,185.36,185.16,10.8003]
[1755712860886,2.87,185.36,185.19,5.30253663]
[1755712861388,2.87,185.36,185.24,5.3979]
[1755712861789,5.30253663,185.34,185.24,5.3979]
[1755712861990,2.95,185.33,185.24,5.3979]
[1755712862396,2.95,185.33,185.26,5.3973]
[1755712862588,2.95,185.33,185.16,5.30253663]
[1755712862985,2.95,185.33,185.26,5.3973]
[1755712863186,2.95,185.33,185.16,5.30253663]
[1755712864795,2.95,185.33,185.18,5.30253663]
[1755712865189,2.95,185.33,185.2,5.30253663]
[1755712865394,2.95,185.33,185.16,5.30253663]
[1755712865592,2.95,185.33,185.25,0.03564647]
[1755712866388,0.03609256,185.31,185.25,0.03564647]
[1755712866893,2.98609256,185.31,185.25,0.03564647]
[1755712867590,0.03609256,185.31,185.25,0.03564647]
[1755712867795,0.03609256,185.31,185.29,5.3965]
[1755712868692,0.03609256,185.31,185.3,5.3962]
[1755712871290,0.03609256,185.31,185.25,0.03564647]
[1755712872095,2.98609256,185.31,185.25,0.03564647]
[1755712872293,2.98609256,185.31,185.27,5.397]
[1755712872494,2.98609256,185.31,185.25,0.03564647]
[1755712872997,2.98609256,185.31,185.27,5.3968]
[1755712873394,0.03609256,185.31,185.25,0.03564647]
[1755712873992,0.03609256,185.31,185.3,5.3962]
[1755712875696,9.256e-05,185.31,185.3,5.3962]
[1755712875894,2.95,185.45,185.3,0.54]
[1755712876099,2.95,185.45,185.29,5.30253663]
[1755712876690,2.95,185.45,185.3,10.7923]
[1755712876893,2.95,185.55,185.41,5.30253663]
[1755712877094,2.95,185.62,185.45,5.30253663]
[1755712877793,1.95,185.62,185.46,1.01]
[1755712877995,1.95,185.62,185.52,0.03656307]
[1755712878696,1.95,185.62,185.52,5.42636307]
[1755712878892,1.95,185.62,185.52,0.03656307]
[1755712879690,5.30253663,185.59,185.52,0.03656307]
[1755712879891,2.95,185.58,185.52,0.03656307]
[1755712880092,2.95,185.58,185.46,1.01]
[1755712880501,2.95,185.58,185.53,0.03597841]
[1755712881295,2.95,185.57,185.53,0.03597841]
[1755712882299,5.30253663,185.59,185.53,0.03597841]
[1755712884503,2.95,185.6,185.53,0.03597841]
[1755712884906,2.95,185.68,185.53,1.04597841]
[1755712885203,2.95,185.64,185.53,1.04597841]
[1755712885504,2.95,185.64,185.53,1.01]
[1755712885803,5.30253663,185.61,185.57,0.03923966]
[1755712886303,2.84,185.6,185.57,0.03923966]
[1755712886506,2.84,185.59,185.57,0.03923966]
[1755712887207,2.84,185.6,185.57,0.03923966]
[1755712887704,2.84,185.59,185.57,0.03923966]
[1755712888004,2.84,185.58,185.57,0.03923966]
[1755712888705,2.84,185.58,185.38,15.29132688]
[1755712888706,2.84,185.58,185.46,1.01]
[1755712889095,2.84,185.58,185.49,5.3905]
[1755712890107,2.84,185.56,185.46,1.01]
[1755712890300,5.30253663,185.53,185.46,1.01]
[1755712890501,8.14253663,185.53,185.42,1.01]
[1755712890800,2.84,185.53,185.42,1.01]
[1755712891002,5.30253663,185.49,185.42,1.01]
[1755712891604,5.30253663,185.49,185.43,5.3922]
[1755712891912,5.30253663,185.49,185.42,1.01]
[1755712892102,5.30253663,185.49,185.42,6.4027]
[1755712892303,5.30253663,185.49,185.32,1.01]
[1755712892304,2.84,185.48,185.32,1.01]
[1755712892802,5.30253663,185.45,185.35,1.01]
[1755712893203,5.30253663,185.45,185.37,5.394]
[1755712893407,5.30253663,185.45,185.35,1.01]
[1755712893607,2.84,185.44,185.35,1.01]
[1755712893803,2.84,185.44,185.29,1.01]
[1755712894204,2.84,185.44,185.35,5.3947]
[1755712894404,2.84,185.4,185.32,1.01]
[1755712894707,2.84,185.4,185.32,6.4056]
[1755712894906,5.30253663,185.41,185.32,1.01]
[1755712895302,5.30253663,185.41,185.36,5.3942]
[1755712895706,5.30253663,185.41,185.32,1.01]
[1755712895902,5.30253663,185.41,185.36,5.3944]
[1755712896104,2.84,185.44,185.33,1.01]
[1755712896709,2.84,185.44,185.38,5.3938]
[1755712896901,2.84,185.44,185.33,1.01]
[1755712897506,8.14253663,185.48,185.33,1.01]
[1755712898110,2.84,185.47,185.33,1.01]
[1755712898503,5.30253663,185.44,185.33,1.01]
[1755712898803,2.84,185.43,185.33,1.01]
[1755712900097,2.84,185.43,185.37,5.394]
[1755712900303,2.84,185.43,185.33,1.01]
[1755712900707,2.84,185.43,185.33,6.4053]
[1755712901306,5.30253663,185.4,185.32,5.3955]
[1755712901505,2.84,185.39,185.29,1.01]
[1755712902105,8.14253663,185.36,185.23,1.01]
[1755712903310,5.30253663,185.36,185.23,1.01]
[1755712903507,8.14253663,185.4,185.23,1.01]
[1755712903709,8.14253663,185.4,185.35,5.3945]
[1755712903911,2.84,185.39,185.35,5.3945]
[1755712904211,2.84,185.39,185.3,1.01]
[1755712904412,370.56253663,185.43,185.36,5.3943]
[1755712905212,370.56253663,185.43,185.35,5.3947]
[1755712905609,2.84,185.42,185.3,1.01]
[1755712905817,2.84,185.38,185.26,1.01]
[1755712906312,2.84,185.38,185.3,5.396]
[1755712907411,2.84,185.34,185.26,1.01]
[1755712907609,2.84,185.34,185.22,1.01]
[1755712908316,378.65,185.43,185.22,1.01]
[1755712908317,8.14253663,185.39,185.22,1.01]
[1755712909516,8.14253663,185.39,185.26,1.01]
[1755712909916,2.84,185.39,185.23,1.01]
[1755712910217,8.14253663,185.39,185.23,1.01]
[1755712910408,8.14253663,185.39,185.32,5.3956]
[1755712911411,8.14253663,185.35,185.21,1.01]
[1755712911916,8.14253663,185.35,185.27,5.3969]
[1755712912217,8.14253663,185.35,185.21,1.01]
[1755712912417,8.14253663,185.35,185.29,5.3964]
[1755712912811,2.84,185.32,185.17,2.93]
[1755712913118,16.23,185.41,185.22,2.93]
[1755712913119,2.84,185.33,185.22,2.93]
[1755712913812,5.30253663,185.31,185.22,2.93]
[1755712914114,2.84,185.3,185.18,2.93]
[1755712914710,2.84,185.26,185.15,5.4005]
[1755712914914,2.84,185.26,185.11,2.93]
[1755712915116,5.30253663,185.23,185.11,2.93]